fUSD/lending_fUSD_20241023
["ID","MTS","AMOUNT","RATE_DAILY","PERIOD"]
[340700711,1729695064816,-500.0,0.00050345,120]
[340700712,1729695064827,-861.3,0.00050345,120]
[340700713,1729695064837,-645.91,0.00050345,120]
[340700714,1729695064847,-500.0,0.00050345,120]
[340700715,1729695064856,-1300.94,0.00050345,120]
[340700716,1729695064866,-2414.78,0.00050345,120]
[340700717,1729695064876,-500.0,0.00050345,120]
[340700718,1729695064886,-500.0,0.00050345,120]
[340700719,1729695064897,-500.0,0.00050345,120]
[340700720,1729695064907,-500.0,0.00050345,120]
[340700721,1729695064917,-500.0,0.00050345,120]
[340700722,1729695064927,-500.0,0.00050345,120]
[340700723,1729695064937,-500.0,0.00050345,120]
[340700724,1729695064947,-1666.47,0.00050345,120]
[340700725,1729695064958,-500.0,0.00050345,120]
[340700726,1729695064969,-500.0,0.00050415,120]
[340700727,1729695064980,-1038.31,0.00050415,120]
[340700728,1729695064990,-500.0,0.00050415,120]
[340700729,1729695065001,-1396.2,0.00050415,120]
[340700730,1729695065010,-2499.88,0.00050415,120]
[340700731,1729695065020,-581.14,0.00050415,120]
[340700732,1729695065030,-500.0,0.00050415,120]
[340700733,1729695065040,-2403.29,0.00050415,120]
[340700734,1729695065050,-2393.31,0.00050415,120]
[340700735,1729695065061,-1078.45,0.00050415,120]
[340700736,1729695065073,-1462.44,0.00050415,120]
[340700737,1729695065082,-865.81,0.00050415,120]
[340700738,1729695065092,-596.71,0.00050415,120]
[340700739,1729695065101,-1434.43,0.00050415,120]
[340700740,1729695065110,-500.0,0.00050415,120]
[340700741,1729695065120,-539.87,0.00050415,120]
[340700742,1729695065130,-6123.06,0.00050415,120]
[340700743,1729695065139,-500.0,0.00050415,120]
[340700744,1729695065150,-500.0,0.00050415,120]
[340700745,1729695065161,-500.0,0.00050415,120]
[340700746,1729695065171,-500.0,0.00050416,120]
[340700747,1729695065180,-551.7,0.00050416,120]
[340700748,1729695065191,-500.0,0.00050416,120]
[340700749,1729695065202,-500.0,0.00050416,120]
[340700750,1729695065211,-500.0,0.00050416,120]
[340700751,1729695065222,-1279.4,0.00050416,120]
[340700752,1729695065231,-541.69,0.00050416,120]
[340700753,1729695065241,-500.0,0.00050416,120]
[340700754,1729695065251,-500.0,0.00050416,120]
[340700755,1729695065261,-500.0,0.00050416,120]
[340700756,1729695065271,-500.0,0.00050416,120]
[340700757,1729695065281,-500.0,0.00050416,120]
[340700758,1729695065292,-500.0,0.00050416,120]
[340700759,1729695065301,-500.0,0.00050416,120]
[340700760,1729695065312,-800.5,0.00050416,120]
[340700761,1729695065323,-829.74,0.00050416,120]
[340700762,1729695065334,-500.0,0.00050416,120]
[340700763,1729695065345,-500.0,0.00050416,120]
[340700764,1729695065355,-831.97,0.00050416,120]
[340700765,1729695065366,-500.0,0.00050416,120]
[340700766,1729695065376,-3068.62,0.00050416,120]
[340700767,1729695065387,-2062.02,0.00050416,120]
[340700768,1729695065397,-636.42,0.00050416,120]
[340700769,1729695065407,-500.0,0.00050416,120]
[340700770,1729695065417,-632.86,0.00050416,120]
[340700771,1729695065428,-500.0,0.00050416,120]
[340700772,1729695065440,-500.0,0.00050416,120]
[340700773,1729695065452,-521.15,0.00050416,120]
[340700774,1729695065462,-500.0,0.00050416,120]
[340700775,1729695065472,-500.0,0.00050416,120]
[340700776,1729695065482,-1010.38,0.00050416,120]
[340700777,1729695065491,-500.0,0.00050416,120]
[340700778,1729695065502,-500.0,0.00050416,120]
[340700779,1729695065512,-710.82,0.00050416,120]
[340700780,1729695065522,-829.76,0.00050416,120]
[340700781,1729695065532,-500.0,0.00050416,120]
[340700782,1729695065543,-500.0,0.00050416,120]
[340700783,1729695065554,-500.0,0.00050416,120]
[340700784,1729695065564,-500.0,0.00050416,120]
[340700785,1729695065576,-502.07817627,0.00050416,120]
[340700786,1729695065587,-500.0,0.00050416,120]
[340700787,1729695065597,-500.0,0.00050416,120]
[340700788,1729695065607,-500.0,0.00050416,120]
[340700789,1729695065616,-500.0,0.00050416,120]
[340700790,1729695065626,-500.0,0.00050416,120]
[340700791,1729695065636,-500.0,0.00050416,120]
[340700792,1729695065646,-500.0,0.00050416,120]
[340700793,1729695065656,-2091.95,0.00050416,120]
[340700794,1729695065666,-153.042613,0.00050416,120]
[340700795,1729695065675,-285.083403,0.00050416,120]
[340700796,1729695065685,-500.0,0.00050416,120]
[340700797,1729695065695,-500.0,0.00050416,120]
[340700798,1729695065705,-405.89748,0.00050416,120]
[340700799,1729695065714,-15318.09,0.00050416,120]
[340700800,1729695065724,-500.0,0.00050416,120]
[340700801,1729695065734,-500.0,0.00050416,120]
[340700802,1729695065744,-696.58,0.00050416,120]
[340700803,1729695065754,-500.0,0.00050416,120]
[340700804,1729695065764,-500.0,0.00050416,120]
[340700805,1729695065773,-500.0,0.00050416,120]
[340700806,1729695065783,-500.0,0.00050416,120]
[340700807,1729695065794,-956.6,0.00050416,120]
[340700808,1729695065803,-500.0,0.00050416,120]
[340700809,1729695065813,-500.0,0.00050416,120]
[340700810,1729695065824,-165.03289819,0.00050416,120]
[340700811,1729695065834,-500.0,0.00050416,120]
[340700812,1729695065843,-1237.23,0.00050416,120]
[340700813,1729695065853,-500.0,0.00050416,120]
[340700814,1729695065864,-500.0,0.00050416,120]
[340700815,1729695065874,-500.0,0.00050416,120]
[340700816,1729695065884,-500.0,0.00050416,120]
[340700817,1729695065894,-500.0,0.00050416,120]
[340700818,1729695065907,-500.0,0.00050416,120]
[340700819,1729695065917,-500.0,0.00050416,120]
[340700820,1729695065927,-500.0,0.00050416,120]
[340700821,1729695065936,-5655.78,0.00050416,21]
[340700822,1729695065946,-500.0,0.00050416,120]
[340700823,1729695065956,-500.0,0.00050416,120]
[340700824,1729695065966,-500.0,0.00050416,120]
[340700825,1729695065976,-500.0,0.00050416,120]
[340700826,1729695065986,-500.0,0.00050416,120]
[340700827,1729695065995,-500.0,0.00050416,120]
[340700828,1729695066006,-500.0,0.00050416,120]
[340700829,1729695066017,-519.34010966,0.00050416,120]
[340700830,1729695066028,-1801.94,0.00050416,120]
[340700831,1729695066038,-1551.48,0.00050416,120]
[340700832,1729695066047,-500.0,0.00050416,120]
[340700833,1729695066059,-2527.52,0.00050416,120]
[340700834,1729695066069,-946.91,0.00050416,120]
[340700835,1729695066080,-500.0,0.00050416,120]
[340700836,1729695066090,-1036.64,0.00050416,120]
[340700837,1729695066100,-500.0,0.00050416,120]
[340700838,1729695066109,-500.0,0.00050416,120]
[340700839,1729695066119,-2104.19,0.00050416,120]
[340700840,1729695066129,-500.0,0.00050416,120]
[340700841,1729695066139,-500.0,0.00050416,120]
[340700842,1729695066149,-500.0,0.00050416,120]
[340700843,1729695066160,-500.0,0.00050416,120]
[340700844,1729695066169,-514.44,0.00050416,120]
[340700845,1729695066179,-742.05,0.00050416,120]
[340700846,1729695066189,-500.0,0.00050417,120]
[340700847,1729695066199,-500.0,0.00050417,120]
[340700848,1729695066396,-500.0,0.00050417,120]
[340700849,1729695066406,-500.0,0.00050417,120]
[340700850,1729695066415,-500.0,0.00050417,120]
[340700851,1729695066426,-546.83,0.00050417,120]
[340700852,1729695066436,-527.01,0.00050417,120]
[340700853,1729695066446,-633.57,0.00050417,120]
[340700854,1729695066456,-500.0,0.00050417,120]
[340700855,1729695066466,-500.0,0.00050417,120]
[340700856,1729695066476,-548.76,0.00050417,120]
[340700857,1729695066486,-500.0,0.00050417,120]
[340700858,1729695066496,-500.0,0.00050417,120]
[340700859,1729695066505,-500.0,0.00050417,120]
[340700860,1729695066515,-500.0,0.00050417,120]
[340700861,1729695066525,-500.0,0.00050417,120]
[340700862,1729695066536,-504.46353008,0.00050417,120]
[340700863,1729695066546,-500.0,0.00050417,120]
[340700864,1729695066556,-349.45489468,0.00050417,120]
[340700865,1729695066565,-500.0,0.00050417,120]
[340700866,1729695066576,-552.51,0.00050417,120]
[340700867,1729695066585,-500.0,0.00050417,120]
[340700868,1729695066595,-500.0,0.00050417,120]
[340700869,1729695066605,-500.0,0.00050417,120]
[340700870,1729695066614,-1010.74,0.00050417,120]
[340700871,1729695066623,-226.36,0.00050417,120]
[340700872,1729695066634,-500.0,0.00050417,120]
[340700873,1729695066644,-500.0,0.00050417,120]
[340700874,1729695066653,-500.0,0.00050417,120]
[340700875,1729695066663,-500.0,0.00050417,120]
[340700876,1729695066672,-664.87,0.00050417,120]
[340700877,1729695066683,-500.0,0.00050417,120]
[340700878,1729695066692,-500.0,0.00050417,120]
[340700879,1729695066702,-1025.87,0.00050417,120]
[340700880,1729695066712,-500.0,0.00050417,120]
[340700881,1729695066721,-500.0,0.00050417,120]
[340700882,1729695066731,-500.0,0.00050417,120]
[340700883,1729695066741,-500.0,0.00050417,120]
[340700884,1729695066751,-500.0,0.00050417,120]
[340700885,1729695066761,-500.0,0.00050417,120]
[340700886,1729695066770,-500.0,0.00050417,120]
[340700887,1729695066780,-500.0,0.00050417,120]
[340700888,1729695066792,-433.45045201,0.00050417,120]
[340700889,1729695066802,-500.0,0.00050417,120]
[340700890,1729695066812,-500.0,0.00050417,120]
[340700891,1729695066823,-500.0,0.00050417,120]
[340700892,1729695066833,-500.0,0.00050417,120]
[340700893,1729695066843,-588.83,0.00050417,120]
[340700894,1729695066854,-500.0,0.00050417,120]
[340700895,1729695066865,-2381.92,0.00050417,120]
[340700896,1729695066875,-500.0,0.00050417,120]
[340700897,1729695066884,-500.0,0.00050417,120]
[340700898,1729695066894,-1507.06,0.00050417,120]
[340700899,1729695066904,-540.56238675,0.00050417,120]
[340700900,1729695066913,-500.0,0.00050417,120]
[340700901,1729695066923,-265.59961732,0.00050417,120]
[340700902,1729695066932,-500.0,0.00050417,120]
[340700903,1729695066942,-3850.95,0.00050417,120]
[340700904,1729695066951,-501.73905874,0.00050417,120]
[340700905,1729695066961,-500.0,0.00050417,120]
[340700906,1729695066971,-500.0,0.00050417,120]
[340700907,1729695066981,-513.69331325,0.00050417,120]
[340700908,1729695066991,-500.0,0.00050417,120]
[340700909,1729695067001,-500.0,0.00050417,120]
[340700910,1729695067011,-500.0,0.00050417,120]
[340700911,1729695067021,-618.02,0.00050417,120]
[340700912,1729695067031,-500.0,0.00050417,120]
[340700913,1729695067042,-500.0,0.00050417,120]
[340700914,1729695067052,-500.0,0.00050417,120]
[340700915,1729695067061,-1937.11,0.00050417,120]
[340700916,1729695067072,-2061.54,0.00050417,120]
[340700917,1729695067081,-500.0,0.00050417,120]
[340700918,1729695067091,-500.0,0.00050417,120]
[340700919,1729695067100,-2726.69,0.00050417,120]
[340700920,1729695067110,-500.0,0.00050417,120]
[340700921,1729695067119,-500.0,0.00050417,120]
[340700922,1729695067129,-500.0,0.00050417,120]
[340700923,1729695067138,-812.34,0.00050417,120]
[340700924,1729695067148,-500.0,0.00050417,120]
[340700925,1729695067157,-500.0,0.00050417,120]
[340700926,1729695067167,-840.01,0.00050417,120]
[340700927,1729695067176,-1694.03,0.00050417,120]
[340700928,1729695067186,-1245.48,0.00050417,120]
[340700929,1729695067195,-500.0,0.00050417,120]
[340700930,1729695067206,-500.0,0.00050417,120]
[340700931,1729695067216,-500.0,0.00050417,120]
[340700932,1729695067226,-623.23621923,0.00050417,90]
[340700933,1729695067236,-1202.0,0.00050417,120]
[340700934,1729695067246,-2671.09,0.00050417,120]
[340700935,1729695067256,-500.0,0.00050417,120]
[340700936,1729695067265,-150.0,0.00050442,14]
[340700937,1729695067275,-500.0,0.00050517,120]
[340700938,1729695067285,-517.46,0.00050517,120]
[340700939,1729695067294,-500.0,0.00050517,120]
[340700940,1729695067304,-500.0,0.00050517,120]
[340700941,1729695067314,-500.0,0.00050517,120]
[340700942,1729695067324,-688.94,0.00050517,120]
[340700943,1729695067334,-3187.68,0.00050517,120]
[340700944,1729695067344,-720.0,0.00050517,120]
[340700945,1729695067354,-1671.38,0.00050517,120]
[340700946,1729695067363,-1870.15,0.00050517,120]
[340700947,1729695067373,-500.0,0.00050517,120]
[340700948,1729695067383,-548.44,0.00050517,120]
[340700949,1729695067392,-639.46,0.00050517,120]
[340700950,1729695067401,-500.0,0.00050517,120]
[340700951,1729695067411,-500.0,0.00050517,120]
[340700952,1729695067420,-949.63,0.00050517,120]
[340700953,1729695067430,-5070.58,0.00050517,120]
[340700954,1729695067439,-2860.91,0.00050517,120]
[340700955,1729695067449,-4127.93,0.00050517,120]
[340700956,1729695067459,-620.51,0.00050517,120]
[340700957,1729695067469,-500.0,0.00050518,120]
[340700958,1729695067478,-500.0,0.00050518,120]
[340700959,1729695067487,-500.0,0.00050518,120]
[340700960,1729695067496,-500.0,0.00050518,120]
[340700961,1729695067506,-500.0,0.00050518,120]
[340700962,1729695067515,-500.0,0.00050518,120]
[340700963,1729695067525,-206.02416667,0.00050518,120]
[340700964,1729695067534,-500.0,0.00050518,120]
[340700965,1729695067544,-500.0,0.00050518,120]
[340700966,1729695067553,-500.0,0.00050518,120]
[340700967,1729695067563,-250.95339445,0.00050518,120]
[340700968,1729695067573,-500.0,0.00050518,120]
[340700969,1729695067583,-500.0,0.00050518,120]
[340700970,1729695067592,-577.37131455,0.00050518,120]
[340700971,1729695067602,-500.0,0.00050518,120]
[340700972,1729695067611,-524.50945757,0.00050518,120]
[340700973,1729695067622,-525.88763246,0.00050518,120]
[340700974,1729695067632,-500.0,0.00050518,120]
[340700975,1729695067641,-500.0,0.00050518,120]
[340700976,1729695067651,-500.0,0.00050518,120]
[340700977,1729695067659,-500.0,0.00050518,120]
[340700978,1729695067669,-500.0,0.00050518,120]
[340700979,1729695067679,-500.0,0.00050518,120]
[340700980,1729695067689,-704.8,0.00050518,120]
[340700981,1729695067699,-851.17,0.00050518,120]
[340700982,1729695067708,-500.0,0.00050518,120]
[340700983,1729695067718,-1610.91,0.00050518,120]
[340700984,1729695067728,-567.20619525,0.00050518,120]
[340700985,1729695067738,-500.0,0.00050518,120]
[340700986,1729695067748,-2404.26,0.00050518,120]
[340700987,1729695067757,-500.0,0.00050518,120]
[340700988,1729695067767,-2023.4,0.00050518,120]
[340700989,1729695067776,-610.2,0.00050518,120]
[340700990,1729695067788,-1452.47,0.00050518,120]
[340700991,1729695067798,-831.56,0.00050518,120]
[340700992,1729695067807,-500.0,0.00050518,120]
[340700993,1729695067816,-500.0,0.00050518,120]
[340700994,1729695067827,-623.53,0.00050518,120]
[340700995,1729695067837,-500.0,0.00050518,120]
[340700996,1729695067846,-500.0,0.00050518,120]
[340700997,1729695067856,-777.0,0.00050518,120]
[340700998,1729695067865,-590.11,0.00050518,120]
[340700999,1729695067875,-150.0,0.0005052,7]
[340701000,1729695067885,-639.26,0.00050536,120]
[340701001,1729695067894,-583.75,0.00050536,120]
[340701002,1729695067904,-150.0,0.00050542,14]
[340701003,1729695067914,-150.0,0.00050545,7]
[340701004,1729695067924,-150.0,0.00050591,14]
[340701005,1729695067934,-500.0,0.00050591,2]
[340701006,1729695067944,-500.0,0.00050591,120]
[340701007,1729695067954,-500.0,0.00050591,120]
[340701008,1729695067963,-500.0,0.00050606,120]
[340701009,1729695067973,-722.51,0.00050606,120]
[340701010,1729695067982,-1345.84,0.00050606,120]
[340701011,1729695067991,-500.0,0.00050606,120]
[340701012,1729695068001,-1084.74,0.00050606,120]
[340701013,1729695068011,-500.0,0.00050606,120]
[340701014,1729695068020,-500.0,0.00050606,120]
[340701015,1729695068029,-500.0,0.00050606,120]
[340701016,1729695068039,-500.0,0.00050606,120]
[340701017,1729695068049,-1845.24,0.00050606,120]
[340701018,1729695068058,-841.4,0.00050606,120]
[340701019,1729695068068,-500.0,0.00050606,120]
[340701020,1729695068081,-678.77,0.00050606,120]
[340701021,1729695068090,-500.0,0.00050606,120]
[340701022,1729695068100,-174.89,0.00050606,120]
[340701023,1729695068109,-500.0,0.00050606,120]
[340701024,1729695068118,-568.85754357,0.00050606,120]
[340701025,1729695068130,-500.0,0.00050606,120]
[340701026,1729695068139,-564.76,0.00050606,120]
[340701027,1729695068149,-550.03,0.00050606,120]
[340701028,1729695068158,-500.0,0.00050606,120]
[340701029,1729695068167,-500.0,0.00050606,120]
[340701030,1729695068177,-531.72,0.00050606,120]
[340701031,1729695068187,-1168.65,0.00050606,120]
[340701032,1729695068196,-500.0,0.00050606,120]
[340701033,1729695068206,-500.0,0.00050606,120]
[340701034,1729695068216,-506.07715572,0.00050606,120]
[340701035,1729695068226,-500.0,0.00050606,120]
[340701036,1729695068235,-500.0,0.00050606,120]
[340701037,1729695068245,-500.0,0.00050606,120]
[340701038,1729695068254,-500.0,0.00050606,120]
[340701039,1729695068264,-500.0,0.00050606,120]
[340701040,1729695068274,-500.0,0.00050606,120]
[340701041,1729695068284,-582.29,0.00050606,120]
[340701042,1729695068294,-624.71908206,0.00050606,120]
[340701043,1729695068304,-500.0,0.00050606,120]
[340701044,1729695068314,-500.0,0.00050606,120]
[340701045,1729695068326,-500.0,0.00050606,120]
[340701046,1729695068335,-520.9171514,0.00050606,120]
[340701047,1729695068344,-500.0,0.00050606,120]
[340701048,1729695068354,-500.0,0.00050606,120]
[340701049,1729695068364,-500.0,0.00050606,120]
[340701050,1729695068374,-500.0,0.00050606,120]
[340701051,1729695068384,-514.10395789,0.00050606,120]
[340701052,1729695068394,-500.0,0.00050606,2]
[340701053,1729695068404,-300.0,0.00050606,120]
[340701054,1729695068414,-500.0,0.00050606,120]
[340701055,1729695068423,-500.0,0.00050606,120]
[340701056,1729695068433,-500.0,0.00050606,120]
[340701057,1729695068443,-500.0,0.00050606,120]
[340701058,1729695068452,-500.0,0.00050606,120]
[340701059,1729695068462,-500.0,0.00050606,120]
[340701060,1729695068472,-500.0,0.00050606,120]
[340701061,1729695068481,-500.0,0.00050606,120]
[340701062,1729695068491,-500.0,0.00050606,120]
[340701063,1729695068501,-735.4,0.00050606,120]
[340701064,1729695068511,-540.98068114,0.00050606,120]
[340701065,1729695068521,-630.29211943,0.00050606,120]
[340701066,1729695068531,-500.0,0.00050606,120]
[340701067,1729695068540,-500.0,0.00050606,120]
[340701068,1729695068550,-500.0,0.00050606,120]
[340701069,1729695068560,-1768.35,0.00050606,120]
[340701070,1729695068570,-868.01,0.00050606,7]
[340701071,1729695068582,-500.0,0.00050606,120]
[340701072,1729695068591,-500.0,0.00050606,120]
[340701073,1729695068601,-500.0,0.00050606,120]
[340701074,1729695068611,-812.19,0.00050606,120]
[340701075,1729695068620,-500.0,0.00050606,120]
[340701076,1729695068632,-500.0,0.00050606,120]
[340701077,1729695068642,-500.0,0.00050606,120]
[340701078,1729695068652,-500.0,0.00050606,120]
[340701079,1729695068661,-521.61,0.00050606,120]
[340701080,1729695068671,-500.0,0.00050606,120]
[340701081,1729695068681,-641.46,0.00050606,120]
[340701082,1729695068692,-500.0,0.00050606,120]
[340701083,1729695068702,-500.0,0.00050606,120]
[340701084,1729695068711,-500.0,0.00050606,120]
[340701085,1729695068785,-683.15,0.00050606,120]
[340701086,1729695068795,-500.0,0.00050606,120]
[340701087,1729695068807,-500.0,0.00050606,120]
[340701088,1729695068816,-500.0,0.00050606,120]
[340701089,1729695068827,-500.0,0.00050606,120]
[340701090,1729695068836,-500.0,0.00050606,120]
[340701091,1729695068846,-500.0,0.00050606,120]
[340701092,1729695068856,-500.0,0.00050606,120]
[340701093,1729695068865,-500.0,0.00050606,120]
[340701094,1729695068874,-534.35,0.00050606,120]
[340701095,1729695068884,-500.0,0.00050606,120]
[340701096,1729695068894,-549.24,0.00050606,120]
[340701097,1729695068904,-947.82,0.00050606,120]
[340701098,1729695068913,-717.45,0.00050606,120]
[340701099,1729695068922,-500.0,0.00050606,120]
[340701100,1729695068933,-500.0,0.00050606,120]
[340701101,1729695068943,-500.0,0.00050606,120]
[340701102,1729695068953,-500.0,0.00050606,120]
[340701103,1729695068963,-500.0,0.00050606,120]
[340701104,1729695068973,-500.0,0.00050606,120]
[340701105,1729695068983,-500.0,0.00050606,120]
[340701106,1729695068992,-500.0,0.00050606,120]
[340701107,1729695069002,-500.0,0.00050606,120]
[340701108,1729695069012,-500.0,0.00050606,120]
[340701109,1729695069021,-500.0,0.00050606,120]
[340701110,1729695069031,-500.0,0.00050606,120]
[340701111,1729695069040,-500.0,0.00050606,120]
[340701112,1729695069050,-500.0,0.00050606,120]
[340701113,1729695069060,-500.0,0.00050606,120]
[340701114,1729695069069,-500.0,0.00050606,120]
[340701115,1729695069082,-500.0,0.00050606,120]
[340701116,1729695069091,-500.0,0.00050606,120]
[340701117,1729695069101,-500.0,0.00050606,120]
[340701118,1729695069110,-500.0,0.00050606,120]
[340701119,1729695069121,-909.83,0.00050606,120]
[340701120,1729695069130,-500.0,0.00050606,120]
[340701121,1729695069140,-500.0,0.00050606,120]
[340701122,1729695069150,-500.0,0.00050606,120]
[340701123,1729695069160,-500.0,0.00050606,120]
[340701124,1729695069169,-500.0,0.00050606,120]
[340701125,1729695069178,-500.0,0.00050606,120]
[340701126,1729695069188,-810.49,0.00050606,120]
[340701127,1729695069197,-500.0,0.00050606,120]
[340701128,1729695069207,-500.0,0.00050606,120]
[340701129,1729695069217,-435.24639856,0.00050606,120]
[340701130,1729695069228,-500.0,0.00050606,120]
[340701131,1729695069238,-638.91,0.00050606,120]
[340701132,1729695069248,-500.0,0.00050606,120]
[340701133,1729695069257,-500.0,0.00050606,120]
[340701134,1729695069266,-500.0,0.00050606,120]
[340701135,1729695069275,-500.0,0.00050606,120]
[340701136,1729695069285,-500.0,0.00050606,120]
[340701137,1729695069294,-500.0,0.00050606,120]
[340701138,1729695069303,-500.0,0.00050606,120]
[340701139,1729695069313,-500.0,0.00050606,120]
[340701140,1729695069323,-645.03919547,0.00050606,120]
[340701141,1729695069339,-622.13351513,0.00050606,120]
[340701142,1729695069349,-500.0,0.00050606,120]
[340701143,1729695069359,-500.0,0.00050606,120]
[340701144,1729695069369,-500.0,0.00050606,120]
[340701145,1729695069379,-500.0,0.00050606,120]
[340701146,1729695069389,-500.0,0.00050606,14]
[340701147,1729695069399,-500.0,0.00050606,120]
[340701148,1729695069408,-500.0,0.00050606,120]
[340701149,1729695069419,-500.0,0.00050606,120]
[340701150,1729695069429,-500.0,0.00050606,120]
[340701151,1729695069439,-500.0,0.00050606,120]
[340701152,1729695069449,-500.0,0.00050606,120]
[340701153,1729695069459,-500.0,0.00050606,120]
[340701154,1729695069468,-500.0,0.00050606,120]
[340701155,1729695069478,-500.0,0.00050606,120]
[340701156,1729695069487,-500.0,0.00050606,120]
[340701157,1729695069498,-500.0,0.00050606,120]
[340701158,1729695069507,-500.0,0.00050606,120]
[340701159,1729695069516,-500.0,0.00050606,120]
[340701160,1729695069526,-549.62880115,0.00050606,120]
[340701161,1729695069535,-500.0,0.00050606,120]
[340701162,1729695069544,-500.0,0.00050606,120]
[340701163,1729695069554,-500.0,0.00050606,120]
[340701164,1729695069564,-1263.1,0.00050606,120]
[340701165,1729695069577,-500.0,0.00050606,120]
[340701166,1729695069587,-629.00241293,0.00050606,120]
[340701167,1729695069597,-500.0,0.00050606,120]
[340701168,1729695069606,-500.0,0.00050606,120]
[340701169,1729695069616,-564.29,0.00050606,120]
[340701170,1729695069626,-500.0,0.00050606,120]
[340701171,1729695069635,-557.88,0.00050606,120]
[340701172,1729695069644,-500.0,0.00050606,120]
[340701173,1729695069654,-500.0,0.00050606,120]
[340701174,1729695069664,-500.0,0.00050606,120]
[340701175,1729695069674,-500.0,0.00050606,120]
[340701176,1729695069684,-686.88,0.00050606,120]
[340701177,1729695069694,-585.56,0.00050606,120]
[340701178,1729695069704,-500.0,0.00050606,120]
[340701179,1729695069714,-500.0,0.00050606,120]
[340701180,1729695069725,-500.0,0.00050606,120]
[340701181,1729695069735,-676.0,0.00050606,120]
[340701182,1729695069745,-500.0,0.00050606,120]
[340701183,1729695069755,-500.0,0.00050606,120]
[340701184,1729695069764,-500.0,0.00050606,120]
[340701185,1729695069775,-500.0,0.00050606,120]
[340701186,1729695069785,-659.49,0.00050606,120]
[340701187,1729695069794,-500.0,0.00050606,120]
[340701188,1729695069808,-500.0,0.00050606,120]
[340701189,1729695069818,-500.0,0.00050606,120]
[340701190,1729695069830,-207.69061109,0.00050606,120]
[340701191,1729695069840,-499.85826118,0.00050606,120]
[340701192,1729695069850,-1865.84,0.00050606,120]
[340701193,1729695069859,-500.0,0.00050606,120]
[340701194,1729695069869,-500.0,0.00050606,120]
[340701195,1729695069879,-271.35484721,0.00050607,120]
[340701196,1729695069889,-500.0,0.00050607,120]
[340701197,1729695069899,-500.0,0.00050607,120]
[340701198,1729695069908,-339.84401184,0.00050607,120]
[340701199,1729695069918,-500.0,0.00050607,120]
[340701200,1729695069928,-500.0,0.00050607,120]
[340701201,1729695069937,-500.0,0.00050607,120]
[340701202,1729695069947,-553.71249689,0.00050607,120]
[340701203,1729695069956,-500.0,0.00050607,7]
[340701204,1729695069965,-527.69035514,0.00050607,120]
[340701205,1729695069976,-500.0,0.00050607,120]
[340701206,1729695069986,-500.0,0.00050607,120]
[340701207,1729695069996,-561.63011202,0.00050607,120]
[340701208,1729695070005,-500.0,0.00050607,5]
[340701209,1729695070014,-500.0,0.00050607,120]
[340701210,1729695070024,-500.0,0.00050607,120]